bitfinex/quotes_BTCUSD_20210402
["timestamp","ask_amount","ask_price","bid_price","bid_amount"]
[1617365719664,0.19638758,59279.0,59268.0,0.059]
[1617365719863,0.33538758,59279.0,59268.0,0.059]
[1617365720063,0.388035,59278.0,59265.0,0.095]
[1617365720313,0.58441065,59278.0,59265.0,0.095]
[1617365720512,1.14648897,59277.0,59265.0,0.145]
[1617365720709,0.388035,59276.0,59266.0,0.059]
[1617365720914,0.2105732,59275.0,59267.0,0.253]
[1617365721112,1.33826184,59274.0,59267.0,0.253]
[1617365721323,0.161,59271.0,59257.0,0.3]
[1617365721516,0.388035,59270.0,59257.0,0.3]
[1617365721708,0.2105732,59269.0,59257.0,0.3]
[1617365721913,0.161,59271.0,59258.0,0.06]
[1617365722117,0.11401508,59272.0,59259.0,0.117595]
[1617365722316,0.16,59267.0,59259.0,0.135]
[1617365722513,0.11401508,59272.0,59259.0,0.135]
[1617365722514,0.11401508,59272.0,59260.0,0.332591]
[1617365722718,0.11401508,59272.0,59261.0,0.1]
[1617365722915,0.11401508,59272.0,59262.0,0.117585]
[1617365723111,0.11401508,59272.0,59263.0,0.059]
[1617365723315,0.11401508,59272.0,59266.0,0.253005]
[1617365723711,0.16401508,59272.0,59267.0,0.06]
[1617365723913,0.11401508,59272.0,59267.0,0.06]
[1617365724518,0.5986082,59271.0,59263.0,0.337321]
[1617365724718,0.5986082,59271.0,59263.0,0.387321]
[1617365724917,0.2105732,59271.0,59263.0,0.387321]
[1617365725116,0.2105732,59271.0,59264.0,0.06]
[1617365725723,0.11401508,59272.0,59264.0,0.06]
[1617365725928,0.11401508,59272.0,59265.0,0.117577]
[1617365726125,0.11401508,59272.0,59265.0,0.167577]
[1617365726320,0.11401508,59272.0,59266.0,0.059]
[1617365726520,0.11401508,59272.0,59267.0,0.117572]
[1617365726738,0.11401508,59272.0,59270.0,0.117564]
[1617365726938,0.11401508,59272.0,59271.0,2.567561]
[1617365727142,0.11401508,59272.0,59271.0,3.152561]
[1617365727339,0.11401508,59272.0,59271.0,3.102561]
[1617365727538,0.11401508,59272.0,59271.0,4.492561]
[1617365728534,0.11401508,59272.0,59271.0,4.782561]
[1617365729563,0.11401508,59272.0,59271.0,5.282561]
[1617365729763,0.11401508,59272.0,59271.0,3.912561]
[1617365729961,0.11401508,59272.0,59271.0,3.832561]
[1617365730358,0.11485865,59272.0,59271.0,4.042561]
[1617365730560,0.11485865,59272.0,59271.0,4.102561]
[1617365731559,0.11485865,59272.0,59271.0,4.132561]
[1617365731764,0.11485865,59272.0,59271.0,4.102561]
[1617365732194,0.31365087,59300.0,59271.0,4.152561]
[1617365732392,3.4824,59302.0,59272.0,3.73]
[1617365732593,3.4824,59302.0,59277.0,0.002]
[1617365732795,0.39690765,59301.0,59280.0,0.03]
[1617365732992,0.59056311,59301.0,59290.0,0.126436]
[1617365733199,0.59056311,59301.0,59291.0,0.19386678]
[1617365733385,0.59056311,59301.0,59291.0,0.29386678]
[1617365733588,1.33826184,59300.0,59292.0,0.155]
[1617365733791,0.388035,59300.0,59292.0,0.255]
[1617365733989,0.1937703,59299.0,59295.0,0.252871]
[1617365734392,0.59070767,59301.0,59295.0,0.252871]
[1617365734609,0.19380316,59298.0,59295.0,0.252871]
[1617365734813,0.1938116,59300.0,59296.0,0.285]
[1617365735012,0.388017,59299.0,59296.0,0.285]
[1617365735211,0.39690765,59301.0,59296.0,0.385]
[1617365735450,0.388017,59300.0,59297.0,0.22]
[1617365735649,0.388017,59299.0,59296.0,0.1]
[1617365735862,0.388017,59299.0,59294.0,0.20876]
[1617365736051,0.14144919,59300.0,59294.0,0.06846]
[1617365736252,0.14144919,59300.0,59293.0,0.337161]
[1617365736455,0.14144919,59300.0,59294.0,0.275]
[1617365736650,3.4824,59302.0,59294.0,0.275]
[1617365736651,3.62384919,59302.0,59294.0,0.275]
[1617365736850,0.388017,59301.0,59294.0,0.275]
[1617365737260,0.388017,59301.0,59298.0,0.25287]
[1617365737669,3.4824,59313.0,59299.0,3.45]
[1617365737869,3.4824,59313.0,59300.0,0.69]
[1617365738065,0.78486339,59312.0,59300.0,0.1]
[1617365738667,0.04,59311.0,59300.0,0.08865217]
[1617365738868,0.388017,59310.0,59298.0,0.19384243]
[1617365739265,0.388017,59310.0,59306.0,0.252833]
[1617365739467,0.388017,59310.0,59306.0,0.52844554]
[1617365739664,0.52946619,59310.0,59306.0,0.52844554]
[1617365740266,0.49446619,59310.0,59306.0,0.52844554]
[1617365740677,0.388006,59309.0,59307.0,0.1]
[1617365740873,0.52945519,59309.0,59307.0,0.1]
[1617365741075,0.14144919,59309.0,59307.0,0.1]
[1617365741474,0.14144919,59309.0,59308.0,0.251437]
[1617365741677,0.14144919,59309.0,59308.0,0.155]
[1617365741877,1.11338643,59318.0,59308.0,0.155]
[1617365742081,1.33823284,59317.0,59308.0,0.155]
[1617365742278,0.388006,59313.0,59307.0,0.126409]
[1617365742490,0.00084305,59308.0,59307.0,0.126409]
[1617365742889,0.38884905,59308.0,59307.0,0.126409]
[1617365743494,0.00084305,59308.0,59307.0,0.126409]
[1617365744289,0.00084305,59308.0,59307.0,1.359235]
[1617365744491,0.76278713,59309.0,59308.0,1.58]
[1617365744693,0.76278713,59309.0,59308.0,0.34573]
[1617365744897,0.62133794,59309.0,59308.0,0.787167]
[1617365745120,0.62133794,59309.0,59308.0,0.887167]
[1617365745321,0.62133794,59309.0,59308.0,4.557167]
[1617365745518,0.62133794,59309.0,59308.0,0.937167]
[1617365746118,0.62133794,59309.0,59308.0,1.437167]
[1617365746327,0.62133794,59309.0,59308.0,5.334167]
[1617365746527,0.11588834,59309.0,59308.0,5.584167]
[1617365746727,0.11588834,59309.0,59308.0,5.634167]
[1617365746924,0.53390801,59348.0,59309.0,3.73]
[1617365747130,0.21177674,59347.0,59324.0,0.126348]
[1617365747326,0.53390801,59348.0,59325.0,0.25637524]
[1617365747327,0.14144919,59348.0,59325.0,0.25637524]
[1617365747529,0.14144919,59348.0,59325.0,0.35637524]
[1617365747744,0.14144919,59348.0,59331.0,0.06737738]
[1617365747946,0.31328241,59349.0,59331.0,0.06737738]
[1617365747947,0.4547316,59349.0,59332.0,0.48333518]
[1617365748145,0.4547316,59349.0,59336.0,0.2]
[1617365748340,0.4547316,59349.0,59337.0,0.251279]
[1617365748537,0.4547316,59349.0,59338.0,3.99]
[1617365748745,0.4547316,59349.0,59338.0,4.391274]
[1617365748945,0.31328241,59349.0,59338.0,4.631274]
[1617365749146,0.14144919,59350.0,59338.0,5.131274]
[1617365749340,0.14144919,59350.0,59338.0,5.29655448]
[1617365749538,0.14144919,59350.0,59338.0,5.32655448]
[1617365749944,0.00026108,59358.0,59338.0,5.67255448]
[1617365750650,0.00026108,59358.0,59338.0,5.507274]
[1617365750857,0.00026108,59358.0,59338.0,1.041274]
[1617365751058,0.21203782,59358.0,59338.0,1.041274]
[1617365751255,0.21203782,59358.0,59338.0,1.267274]
[1617365751647,0.21203782,59358.0,59338.0,0.81296347]
[1617365751850,0.21203782,59358.0,59338.0,0.56168947]
[1617365751851,0.04,59357.0,59338.0,0.56168947]
[1617365752044,0.01,59339.0,59338.0,0.56168947]
[1617365752445,0.01,59339.0,59338.0,0.57468947]
[1617365752652,0.96022684,59339.0,59338.0,0.57468947]
[1617365752869,1.15522684,59339.0,59338.0,0.56168947]
[1617365753089,1.15522684,59339.0,59338.0,0.5]
[1617365753090,1.54323284,59339.0,59338.0,0.5]
[1617365753276,3.44117284,59339.0,59338.0,0.5]
[1617365753470,3.81195919,59339.0,59338.0,0.5]
[1617365753673,4.46695919,59339.0,59338.0,0.014]
[1617365753875,4.67975919,59339.0,59338.0,0.014]
[1617365754075,4.62975919,59339.0,59338.0,0.014]
[1617365754271,2.80975919,59339.0,59314.0,0.014]
[1617365754484,0.0048,59335.0,59315.0,0.50303724]
[1617365754876,0.0048,59335.0,59317.0,0.25441724]
[1617365755075,0.0048,59335.0,59324.0,0.00303724]
[1617365755277,0.0048,59335.0,59324.0,0.25438224]
[1617365755473,0.01084261,59339.0,59326.0,0.00303724]
[1617365755683,0.96106945,59339.0,59326.0,0.00303724]
[1617365755890,0.388006,59338.0,59325.0,0.013]
[1617365756089,0.96106945,59339.0,59329.0,0.252719]
[1617365756286,0.01084261,59339.0,59329.0,0.252719]
[1617365756485,0.01084261,59339.0,59330.0,0.251316]
[1617365756690,0.01084261,59339.0,59331.0,0.014]
[1617365756885,0.01084261,59339.0,59332.0,0.251304]
[1617365757090,0.01084261,59339.0,59327.0,0.10503724]
[1617365757288,0.95022684,59338.0,59328.0,0.013]
[1617365757489,0.59974356,59337.0,59327.0,0.102]
[1617365757692,0.95022684,59336.0,59328.0,0.5]
[1617365757890,0.388006,59335.0,59329.0,0.014]
[1617365758090,0.95022684,59334.0,59329.0,0.014]
[1617365758520,0.59974356,59333.0,59329.0,0.014]
[1617365758726,0.158,59335.0,59328.0,0.5]
[1617365758727,0.388006,59331.0,59328.0,0.5]
[1617365758920,1.398006,59329.0,59328.0,0.5]
[1617365759121,0.549006,59329.0,59328.0,0.514]
[1617365759322,0.549006,59329.0,59328.0,0.014]
[1617365759523,0.549006,59329.0,59322.0,0.5]
[1617365759722,0.06389,59331.0,59323.0,0.265349]
[1617365760122,0.004,59337.0,59323.0,0.265349]
[1617365760123,0.004,59337.0,59324.0,0.252753]
[1617365760323,0.004,59337.0,59322.0,0.5]
[1617365760324,0.004,59337.0,59325.0,0.265339]
[1617365760938,0.004,59337.0,59325.0,0.014]
[1617365761139,0.004,59337.0,59327.0,0.25133]
[1617365761339,0.004,59337.0,59326.0,0.175]
[1617365761340,0.004,59337.0,59329.0,0.252741]
[1617365761539,0.004,59337.0,59330.0,0.014]
[1617365761540,0.95022684,59337.0,59330.0,0.014]
[1617365761740,0.004,59340.0,59330.0,0.014]
[1617365761942,0.37994374,59338.0,59330.0,0.014]
[1617365762137,0.004,59340.0,59330.0,0.014]
[1617365762343,0.5916813,59345.0,59330.0,0.014]
[1617365762543,0.005,59334.0,59331.0,0.251309]
[1617365762751,0.005,59334.0,59332.0,0.2657]
[1617365762951,0.005,59334.0,59333.0,0.251301]
[1617365763142,0.005,59334.0,59333.0,0.851301]
[1617365763346,0.005,59334.0,59333.0,0.351301]
[1617365763968,0.00584269,59334.0,59333.0,0.351301]
[1617365764370,0.00584269,59334.0,59333.0,0.401301]
[1617365764773,0.00084269,59339.0,59334.0,0.73]
[1617365764980,0.00084269,59339.0,59335.0,0.571289]
[1617365765174,0.00084269,59339.0,59338.0,3.981275]
[1617365765457,0.00084269,59339.0,59338.0,5.270145]
[1617365765657,0.15089955,59375.0,59339.0,3.72]
[1617365765864,1.5889,59386.0,59356.0,0.277611]
[1617365765865,3.4824,59361.0,59356.0,0.277611]
[1617365766053,3.4824,59361.0,59356.0,0.582371]
[1617365766250,0.18262134,59360.0,59357.0,0.1]
[1617365766851,0.18265556,59373.0,59359.0,3.981161]
[1617365767058,0.18265556,59373.0,59365.0,0.126276]
[1617365767059,0.95022684,59373.0,59365.0,0.126276]
[1617365767247,0.1826801,59379.0,59365.0,0.126276]
[1617365767248,0.95022684,59378.0,59365.0,0.126276]
[1617365767449,0.18281344,59372.0,59365.0,0.126276]
[1617365767650,0.388006,59370.0,59365.0,0.126276]
[1617365767848,0.18151991,59370.0,59360.0,0.14537662]
[1617365768050,0.17905722,59369.0,59368.0,0.336736]
[1617365768458,0.17905722,59369.0,59368.0,0.637847]
[1617365768847,0.17905722,59369.0,59368.0,0.867657]
[1617365769054,0.17757855,59379.0,59373.0,0.336661]
[1617365769256,0.50026108,59380.0,59374.0,0.1]
[1617365769451,0.50026108,59380.0,59375.0,0.251073]
[1617365769643,0.50026108,59380.0,59375.0,0.416073]
[1617365769851,0.17381416,59379.0,59376.0,0.1]
[1617365770049,0.17874193,59378.0,59377.0,1.741063]
[1617365770247,0.17875952,59379.0,59377.0,0.616063]
[1617365770446,0.50026108,59380.0,59377.0,0.616063]
[1617365770447,0.17882143,59378.0,59377.0,0.616063]
[1617365770648,0.17882143,59378.0,59377.0,0.365]
[1617365770852,0.17886621,59379.0,59377.0,1.232706]
[1617365771045,0.17886621,59379.0,59378.0,2.121058]
[1617365771247,0.17886621,59379.0,59378.0,0.351058]
[1617365771445,0.17886621,59379.0,59378.0,0.706058]
[1617365771844,0.17886621,59379.0,59378.0,1.206058]
[1617365772046,0.17886621,59379.0,59378.0,4.226058]
[1617365772244,0.17886621,59379.0,59378.0,4.276058]
[1617365772447,0.17886621,59379.0,59378.0,1.256058]
[1617365773049,0.17886621,59379.0,59378.0,3.736058]
[1617365773245,0.17886621,59379.0,59378.0,1.50854]
[1617365774059,0.17886621,59379.0,59378.0,2.75854]
[1617365774258,0.17886621,59379.0,59378.0,1.74854]
[1617365774662,0.17886621,59379.0,59378.0,1.50126874]
[1617365775261,0.17970826,59379.0,59378.0,1.50126874]
[1617365776060,0.17970826,59379.0,59378.0,2.32126874]
[1617365776260,0.17470826,59379.0,59378.0,1.50126874]
[1617365776885,0.18221611,59379.0,59378.0,1.49626874]
[1617365777888,0.1744087,59379.0,59378.0,1.49626874]
[1617365778886,0.1744087,59379.0,59378.0,2.91626874]
[1617365779318,0.1744087,59379.0,59378.0,1.49626874]
[1617365779719,0.1744087,59379.0,59378.0,1.44718479]
[1617365779917,0.0083499,59379.0,59378.0,2.58718479]
[1617365780320,0.0083499,59379.0,59378.0,1.68718479]
[1617365780605,0.0083499,59379.0,59378.0,1.29718479]
[1617365781402,0.0083499,59379.0,59378.0,0.94218479]
[1617365782866,0.0083499,59379.0,59378.0,0.74401706]
[1617365783869,0.0083499,59379.0,59378.0,1.38401706]
[1617365784070,0.0083499,59379.0,59378.0,0.74401706]
[1617365784268,0.0083499,59379.0,59378.0,0.98901706]
[1617365784466,0.0083499,59379.0,59378.0,1.08901706]
[1617365785069,0.90327168,59379.0,59378.0,1.08901706]
[1617365785869,0.90327168,59379.0,59378.0,0.84401706]
[1617365787074,0.90327168,59379.0,59378.0,0.74401706]
[1617365788292,1.85349852,59379.0,59378.0,0.74401706]
[1617365788494,0.90327168,59379.0,59378.0,0.74401706]
[1617365789918,0.90327168,59379.0,59378.0,0.84401706]
[1617365790315,0.90327168,59379.0,59378.0,0.74401706]
[1617365790719,0.90327168,59379.0,59378.0,0.84401706]
[1617365791114,0.90327168,59379.0,59378.0,1.05401706]
[1617365791314,0.90327168,59379.0,59378.0,1.05421706]
[1617365791715,0.89827168,59379.0,59378.0,1.05421706]
[1617365792324,0.89827168,59379.0,59378.0,0.84421706]
[1617365792569,0.88817168,59379.0,59378.0,0.84421706]
[1617365792754,0.88817168,59379.0,59378.0,0.74421706]
[1617365796233,0.88817168,59379.0,59378.0,0.94421706]
[1617365796836,0.88901373,59379.0,59378.0,0.94421706]
[1617365797037,0.88901373,59379.0,59378.0,0.94401706]
[1617365797836,0.88901373,59379.0,59378.0,0.74401706]
[1617365798837,0.99211373,59379.0,59378.0,0.74401706]
[1617365799237,0.99211373,59379.0,59378.0,0.73901706]
[1617365801841,0.99211373,59379.0,59378.0,0.78958453]
[1617365802439,1.23711373,59379.0,59378.0,0.73901706]
[1617365802640,1.5908689,59379.0,59378.0,0.73901706]
[1617365803241,1.5908689,59379.0,59378.0,0.83901706]
[1617365803242,1.97081264,59379.0,59378.0,0.83901706]
[1617365803445,1.72581264,59379.0,59378.0,0.73401706]
[1617365803640,1.3458689,59379.0,59378.0,0.252482]
[1617365804039,0.99211373,59379.0,59378.0,0.252482]
[1617365807063,0.99211373,59379.0,59378.0,0.352482]
[1617365807860,0.99211373,59379.0,59378.0,0.252482]
[1617365808060,1.21211373,59379.0,59378.0,0.252482]
[1617365808301,1.60004673,59379.0,59378.0,0.252482]
[1617365808507,1.93474926,59379.0,59378.0,0.752482]
[1617365808901,1.93474926,59379.0,59378.0,0.747482]
[1617365808902,1.54681626,59379.0,59378.0,0.747482]
[1617365809299,1.32681626,59379.0,59378.0,0.747482]
[1617365809505,0.99211373,59379.0,59378.0,0.747482]
[1617365812851,1.38004673,59379.0,59378.0,0.757482]
[1617365813052,1.60004673,59379.0,59378.0,0.757482]
[1617365813452,1.93445351,59379.0,59378.0,0.747482]
[1617365814052,1.93445351,59379.0,59378.0,0.777482]
[1617365814457,1.93445351,59379.0,59378.0,0.762482]
[1617365814654,1.71445351,59379.0,59378.0,0.762482]
[1617365814855,1.32652051,59379.0,59378.0,0.762482]
[1617365815058,1.91445351,59379.0,59378.0,0.742482]
[1617365815273,3.36946357,59379.0,59378.0,0.519]
[1617365815472,4.96381167,59379.0,59377.0,0.01]
[1617365815669,1.33039208,59378.0,59377.0,0.01]
[1617365815859,2.61532508,59378.0,59377.0,0.01]
[1617365816078,0.33016524,59377.0,59371.0,0.02]
[1617365816279,2.5661863,59372.0,59371.0,0.02]
[1617365816483,0.33016524,59371.0,59353.0,0.019]
[1617365816680,0.005,59368.0,59353.0,0.029]
[1617365816883,0.05714996,59355.0,59353.0,0.029]
[1617365817080,1.87714008,59354.0,59353.0,0.029]
[1617365817276,2.0301371,59354.0,59353.0,0.019]
[1617365817475,3.52474514,59354.0,59353.0,0.019]
[1617365817675,3.52474514,59354.0,59350.0,0.02]
[1617365817876,0.387933,59353.0,59350.0,0.02]
[1617365818079,1.31172518,59353.0,59350.0,0.03]
[1617365818274,0.98001358,59352.0,59350.0,0.03]
[1617365818479,0.59717556,59351.0,59350.0,0.03]
[1617365818690,0.777933,59351.0,59350.0,0.03]
[1617365819091,0.39,59351.0,59350.0,0.03]
[1617365819300,0.00284518,59359.0,59350.0,0.03]
[1617365819696,0.00449894,59350.0,59342.0,0.00303724]
[1617365820093,0.00449894,59350.0,59349.0,0.219]
[1617365820889,0.00449894,59350.0,59349.0,0.229]
[1617365821091,0.00449894,59350.0,59349.0,0.374]
[1617365821331,0.00449894,59350.0,59349.0,0.474]
[1617365821530,0.00449894,59350.0,59349.0,2.394]
[1617365821725,0.00449894,59350.0,59349.0,0.726639]
[1617365822522,0.00449894,59350.0,59349.0,0.71141315]
[1617365822721,0.00449894,59350.0,59349.0,1.21141315]
[1617365823126,0.00449894,59350.0,59349.0,1.11141315]
[1617365823526,0.00449894,59350.0,59349.0,0.897639]
[1617365823724,0.0053414,59350.0,59349.0,0.926639]
[1617365824558,0.0053414,59350.0,59349.0,1.026639]
[1617365824764,0.0053414,59350.0,59349.0,1.007639]
[1617365824962,0.0053414,59350.0,59349.0,0.927639]
[1617365825156,0.00084246,59350.0,59349.0,0.91314006]
[1617365825823,0.00084246,59350.0,59349.0,0.41314006]
[1617365826423,0.00084246,59350.0,59349.0,0.51314006]
[1617365826625,0.00084246,59350.0,59349.0,0.49314006]
[1617365827221,0.00084246,59350.0,59349.0,0.39314006]
[1617365827621,0.00084246,59350.0,59349.0,0.41314006]
[1617365827829,0.00084246,59350.0,59349.0,0.39314006]
[1617365828422,0.00084246,59350.0,59349.0,0.49314006]
[1617365831223,0.00084246,59350.0,59349.0,0.4872686]
[1617365831926,0.00084246,59350.0,59349.0,0.9872686]
[1617365832930,0.00084246,59350.0,59349.0,0.852639]
[1617365833130,0.00084246,59350.0,59349.0,0.34819835]
[1617365833328,0.00084246,59350.0,59349.0,0.24819835]
[1617365833528,0.00084246,59350.0,59349.0,0.34819835]
[1617365834125,0.00084246,59350.0,59349.0,0.38319835]
[1617365834557,0.9510693,59350.0,59349.0,0.28319835]
[1617365834768,1.5351693,59350.0,59349.0,0.035]
[1617365834958,2.44304604,59350.0,59334.0,0.035]
[1617365835162,0.164,59342.0,59334.0,0.035]
[1617365835356,1.11422684,59342.0,59334.0,0.035]
[1617365835559,0.5891863,59341.0,59334.0,0.035]
[1617365835756,0.255,59340.0,59334.0,0.035]
[1617365835957,0.255,59340.0,59334.0,0.2877]
[1617365836354,0.20924256,59341.0,59334.0,0.2877]
[1617365836553,1.33017058,59340.0,59334.0,0.2877]
[1617365836751,0.37994374,59339.0,59334.0,0.2877]
[1617365836954,0.0665,59339.0,59334.0,0.2877]
[1617365837996,0.168,59342.0,59334.0,0.2877]
[1617365838196,0.004,59342.0,59334.0,0.27656208]
[1617365838393,0.164,59341.0,59334.0,0.27656208]
[1617365838597,0.20924256,59340.0,59334.0,0.02386208]
[1617365838795,0.195,59339.0,59333.0,0.02386208]
[1617365839193,0.20924256,59340.0,59333.0,0.02386208]
[1617365839595,0.164,59341.0,59333.0,0.02386208]
[1617365839800,0.004,59343.0,59333.0,0.27657108]
[1617365840199,0.00285006,59346.0,59333.0,0.27657108]
[1617365840402,0.25,59345.0,59333.0,0.27657108]
[1617365840661,0.00285006,59346.0,59333.0,0.27657108]
[1617365840662,1.33017058,59344.0,59333.0,0.27657108]
[1617365840860,0.37994374,59344.0,59333.0,0.27657108]
[1617365841260,0.37994374,59343.0,59333.0,0.27657108]
[1617365841469,0.20924256,59342.0,59333.0,0.27657108]
[1617365841662,0.20924256,59342.0,59334.0,0.126348]
[1617365841860,0.00285006,59346.0,59335.0,0.02386208]
[1617365842261,0.3827938,59346.0,59335.0,0.02386208]
[1617365842463,0.47924256,59345.0,59335.0,0.02386208]
[1617365842659,0.5891863,59345.0,59335.0,0.02386208]
[1617365842860,0.20924256,59345.0,59335.0,0.02386208]
[1617365843063,0.20924256,59345.0,59339.0,0.252677]
[1617365843267,0.00685539,59347.0,59340.0,0.02386208]
[1617365843464,0.00751272,59344.0,59340.0,0.02386208]
[1617365843667,1.975,59341.0,59340.0,0.02386208]
[1617365843864,3.19579674,59341.0,59340.0,0.02386208]
[1617365844264,1.0421063,59341.0,59340.0,0.02386208]
[1617365844463,1.3421063,59341.0,59340.0,0.02386208]
[1617365844665,0.96216256,59341.0,59340.0,0.02386208]
[1617365844866,1.0421063,59341.0,59340.0,0.02386208]
[1617365845267,0.38078633,59341.0,59340.0,0.02386208]
[1617365845466,0.00084259,59341.0,59340.0,0.02386208]
[1617365846267,0.00084259,59341.0,59339.0,0.252684]
[1617365846467,0.00084259,59341.0,59340.0,0.02386208]
[1617365846674,0.00084259,59341.0,59339.0,0.17344608]
[1617365847880,0.00084259,59341.0,59335.0,0.126342]
[1617365848385,0.00084259,59341.0,59335.0,0.37904]
[1617365848980,0.00751298,59340.0,59335.0,0.37904]
[1617365849182,0.00751298,59340.0,59335.0,0.126342]
[1617365852400,0.00751298,59340.0,59335.0,0.226342]
[1617365853643,0.00751298,59340.0,59335.0,0.1]
[1617365853834,0.00751298,59340.0,59334.0,0.252705]
[1617365854435,0.00751298,59340.0,59334.0,0.302705]
[1617365854636,0.00751298,59340.0,59334.0,0.05]
[1617365854834,0.00751298,59340.0,59331.0,0.15]
[1617365855238,0.00751298,59340.0,59337.0,0.252687]
[1617365856340,0.00084262,59339.0,59337.0,0.252687]
[1617365858375,2.77022684,59338.0,59331.0,0.1]
[1617365858582,2.77022684,59338.0,59319.0,0.0002]
[1617365858583,0.163,59332.0,59319.0,0.0002]
[1617365858784,0.54762796,59331.0,59322.0,0.5]
[1617365858977,0.55202796,59331.0,59322.0,0.5]
[1617365859175,0.71010898,59330.0,59322.0,0.5]
[1617365859372,0.71010898,59329.0,59322.0,0.5]
[1617365859574,0.37994374,59327.0,59322.0,0.5]
[1617365859777,0.0044,59331.0,59321.0,0.252949]
[1617365860176,0.33016524,59335.0,59321.0,0.252949]
[1617365860177,0.71470898,59335.0,59321.0,0.252949]
[1617365860377,0.71010898,59333.0,59321.0,0.252949]
[1617365860575,0.387933,59330.0,59321.0,0.252949]
[1617365860808,0.387933,59328.0,59321.0,0.252949]
[1617365861000,0.387933,59326.0,59321.0,0.252949]
[1617365861204,0.33016524,59325.0,59321.0,0.0002]
[1617365861401,0.37994374,59325.0,59321.0,0.0002]
[1617365861601,0.52494374,59324.0,59321.0,0.0002]
[1617365861799,0.37994374,59323.0,59321.0,0.0002]
[1617365861999,0.07256,59330.0,59321.0,0.0002]
[1617365862202,0.09812,59323.0,59321.0,0.0002]
[1617365862806,0.387933,59322.0,59321.0,0.0002]
[1617365863005,0.42882,59322.0,59321.0,0.0002]
[1617365863200,0.42382,59322.0,59321.0,0.0002]
[1617365863620,0.55882,59322.0,59321.0,0.0002]
[1617365864821,0.88898524,59322.0,59321.0,0.0002]
[1617365865022,0.55882,59322.0,59321.0,0.0002]
[1617365866053,0.946753,59322.0,59321.0,0.0002]
[1617365866456,1.89697984,59322.0,59321.0,0.0002]
[1617365866656,1.89697984,59322.0,59311.0,0.337017]
[1617365866853,0.37994374,59320.0,59311.0,0.32486791]
[1617365867047,0.71010898,59320.0,59311.0,0.31931119]
[1617365867258,1.33437058,59319.0,59310.0,0.0002]
[1617365867459,0.59516818,59311.0,59310.0,0.0002]
[1617365867656,0.97511192,59311.0,59310.0,0.0002]
[1617365867855,2.10033876,59311.0,59310.0,0.0002]
[1617365868051,1.15011192,59311.0,59310.0,0.0002]
[1617365868254,1.89310358,59311.0,59310.0,0.0002]
[1617365868453,0.94287674,59311.0,59310.0,0.0002]
[1617365869468,0.84287674,59311.0,59310.0,0.0002]
[1617365871993,1.79310358,59311.0,59310.0,0.0002]
[1617365872190,1.17304198,59311.0,59310.0,0.0002]
[1617365872391,1.67554369,59311.0,59310.0,0.0002]
[1617365873199,1.28761069,59311.0,59310.0,0.0002]
[1617365873602,0.95744545,59311.0,59310.0,0.0002]
[1617365875023,0.68501817,59311.0,59310.0,0.0002]
[1617365875425,0.51001817,59311.0,59310.0,0.0002]
[1617365875824,0.78996191,59311.0,59310.0,0.0002]
[1617365877051,0.51001817,59311.0,59310.0,0.0002]
[1617365877654,0.78996191,59311.0,59310.0,0.0002]
[1617365877853,0.99716099,59311.0,59310.0,0.0002]
[1617365878058,0.92992493,59311.0,59310.0,0.0002]
[1617365878261,1.10992493,59311.0,59310.0,0.0002]
[1617365882898,0.92992493,59311.0,59310.0,0.0002]
[1617365883100,0.79080493,59311.0,59310.0,0.0002]
[1617365883296,0.51086119,59311.0,59310.0,0.0002]
[1617365883499,0.79080493,59311.0,59310.0,0.0002]
[1617365884544,0.51086119,59311.0,59310.0,0.0002]
[1617365884944,0.78580493,59311.0,59310.0,0.0002]
[1617365886004,0.51086119,59311.0,59310.0,0.0002]
[1617365886409,0.51086119,59311.0,59309.0,0.25215844]
[1617365886606,0.51086119,59311.0,59309.0,0.35215844]
[1617365887007,0.78580493,59311.0,59309.0,0.35215844]
[1617365887215,0.51086119,59311.0,59310.0,3.92719908]
[1617365887418,0.51086119,59311.0,59310.0,4.49391908]
[1617365887615,0.42677279,59311.0,59310.0,4.59391908]
[1617365888013,0.42677279,59311.0,59310.0,0.66672]
[1617365888413,0.42677279,59311.0,59310.0,0.66650136]
[1617365888610,0.42677279,59311.0,59310.0,0.81815852]
[1617365889010,0.42677279,59311.0,59310.0,1.31815852]
[1617365889814,0.42677279,59311.0,59310.0,2.24815852]
[1617365890714,0.42677279,59311.0,59310.0,5.03815852]
[1617365890908,0.42177279,59311.0,59310.0,5.03815852]
[1617365891316,0.40383301,59311.0,59310.0,5.03815852]
[1617365891511,0.37861451,59311.0,59310.0,5.16315852]
[1617365891709,0.33139643,59311.0,59310.0,5.35598669]
[1617365891912,0.33139643,59311.0,59310.0,5.40598669]
[1617365892112,0.33139643,59311.0,59310.0,5.65598669]
[1617365892314,0.33139643,59311.0,59310.0,5.68598669]
[1617365893311,0.28389643,59311.0,59310.0,5.56098669]
[1617365893509,0.28389643,59311.0,59310.0,5.68598669]
[1617365894723,2.81709694,59354.0,59311.0,3.72]
[1617365894938,0.95022684,59353.0,59317.0,0.126358]
[1617365895135,0.006,59343.0,59330.0,0.08775274]
[1617365895347,0.0042,59343.0,59336.0,0.252689]
[1617365896136,0.09405101,59352.0,59336.0,0.216689]
[1617365896334,0.0048,59349.0,59336.0,0.216689]
[1617365896528,1.33815984,59348.0,59336.0,0.216689]
[1617365896928,0.95022684,59347.0,59336.0,0.216689]
[1617365897762,0.0048,59349.0,59336.0,0.21972624]
[1617365898362,0.95022684,59348.0,59336.0,0.216689]
[1617365898560,0.0048,59349.0,59336.0,0.216689]
[1617365898762,1.31022684,59348.0,59336.0,0.216689]
[1617365898961,1.33815984,59347.0,59336.0,0.216689]
[1617365899163,0.387933,59345.0,59336.0,0.216689]
[1617365899361,0.95022684,59344.0,59336.0,0.216689]
[1617365899562,0.387933,59343.0,59336.0,0.216689]
[1617365900189,0.0048,59349.0,59336.0,0.216689]
[1617365900387,0.0008426,59343.0,59336.0,0.216689]
[1617365905055,0.0008426,59343.0,59339.0,0.06737599]
[1617365905256,0.0008426,59343.0,59339.0,0.44233599]
[1617365905854,0.0008426,59343.0,59339.0,0.44180293]
[1617365906053,0.0008426,59343.0,59340.0,0.1]